bitfinex/quotes_ETHUSD_20250626
["timestamp","ask_amount","ask_price","bid_price","bid_amount"]
[1750940523397,0.55,2441.1,2440.8,0.01]
[1750940523595,0.55,2440.9,2440.8,0.01]
[1750940524305,1.3261,2440.9,2440.8,0.01]
[1750940524697,0.55,2440.9,2440.8,0.01]
[1750940525905,0.55,2441.0,2440.8,4.10693292]
[1750940526400,0.55,2441.2,2440.9,4.09684952]
[1750940526602,0.55,2441.2,2440.8,0.01]
[1750940526921,0.55,2441.2,2440.8,4.10686576]
[1750940527217,0.55,2441.2,2440.8,4.10699349]
[1750940527893,0.55,2441.2,2440.9,4.09684952]
[1750940528093,0.55,2441.2,2441.0,4.09666913]
[1750940528884,0.55,2441.2,2440.9,4.09680755]
[1750940529602,0.55,2441.2,2440.9,4.09684952]
[1750940529809,0.55,2441.2,2440.9,4.09676457]
[1750940530201,0.55,2441.2,2441.0,4.09655373]
[1750940530708,0.55,2441.2,2441.0,4.09653941]
[1750940530906,0.7771,2441.5,2441.1,4.09649616]
[1750940531107,8.35071,2441.4,2440.9,4.09684952]
[1750940531312,7.273,2441.4,2440.9,4.09684952]
[1750940531510,7.273,2441.4,2441.1,4.09646456]
[1750940531804,0.55,2441.4,2441.1,4.09640726]
[1750940532008,6.721,2441.5,2441.2,4.09625307]
[1750940532207,6.721,2441.5,2441.1,4.09642012]
[1750940532723,0.55,2441.2,2440.8,0.01]
[1750940532923,0.55,2441.2,2440.8,4.10698488]
[1750940533132,0.2048,2440.9,2440.8,4.10698488]
[1750940533616,0.2048,2440.9,2440.8,4.91338488]
[1750940533813,0.7509,2441.5,2441.1,4.09641776]
[1750940533999,0.2048,2441.2,2441.1,4.09641776]
[1750940534507,0.2048,2441.2,2441.0,4.0965894]
[1750940534718,0.2048,2441.2,2441.1,4.09651386]
[1750940535427,0.2048,2441.2,2441.0,4.09662585]
[1750940535624,0.2048,2441.2,2440.9,4.0967554]
[1750940536528,0.2048,2441.2,2441.0,4.09667646]
[1750940537909,0.2048,2441.2,2440.9,4.09679142]
[1750940539131,0.2048,2441.2,2441.0,4.09660962]
[1750940539831,0.2048,2441.2,2441.1,4.09651386]
[1750940540034,10.2048,2441.4,2441.1,4.09651386]
[1750940540602,0.2048,2441.4,2441.1,4.09651386]
[1750940541909,0.2048,2441.4,2441.2,4.09623308]
[1750940542228,0.2048,2441.4,2441.2,4.87623308]
[1750940542843,0.2048,2441.4,2441.3,4.09617826]
[1750940543001,0.7636,2441.8,2441.2,4.87623308]
[1750940543203,0.204,2441.8,2441.3,0.2048]
[1750940543404,0.55,2441.8,2441.3,4.09616283]
[1750940543604,0.204,2441.6,2441.3,4.09616283]
[1750940544012,0.204,2441.6,2441.2,0.9848]
[1750940544338,0.204,2441.5,2441.1,4.09638922]
[1750940544550,0.204,2441.5,2441.2,4.09634216]
[1750940544707,0.204,2441.5,2441.3,4.09616928]
[1750940544918,0.204,2441.5,2441.2,4.09625833]
[1750940545132,0.204,2441.5,2441.1,4.09644816]
[1750940545437,0.204,2441.5,2441.0,0.9634]
[1750940545438,0.204,2441.5,2441.0,5.05995146]
[1750940545735,0.2048,2441.2,2441.0,0.7586]
[1750940545935,0.2048,2441.2,2440.9,4.09673655]
[1750940547135,0.2048,2441.2,2440.8,6.69432535]
[1750940547825,0.2048,2441.2,2440.9,4.09684561]
[1750940548736,0.55,2441.4,2440.8,2.5974]
[1750940548737,0.55,2441.4,2440.8,0.8354]
[1750940549063,0.2048,2441.0,2440.8,0.01]
[1750940549348,0.2048,2441.0,2440.8,4.10699694]
[1750940550430,0.2048,2441.0,2440.8,0.01]
[1750940553717,0.2048,2441.0,2440.8,4.10699388]
[1750940554114,0.2048,2441.0,2440.8,0.01]
[1750940555242,0.55,2440.9,2440.8,0.01]
[1750940555649,0.55,2441.0,2440.8,0.01]
[1750940557350,1.36,2440.9,2440.8,0.01]
[1750940557574,3.49153984,2440.9,2440.8,0.01]
[1750940558583,13.49153984,2440.9,2440.8,0.01]
[1750940558799,17.58838936,2440.9,2440.8,0.01]
[1750940558960,18.56368316,2440.9,2440.8,0.01]
[1750940559286,17.58838936,2440.9,2440.8,0.01]
[1750940559582,14.46633695,2440.9,2440.8,0.01]
[1750940559759,2.94153984,2440.9,2440.8,0.01]
[1750940559955,0.8295,2440.7,2440.0,0.2]
[1750940560169,0.55,2440.6,2440.0,0.9924]
[1750940560369,0.55,2440.6,2440.0,0.2]
[1750940560561,0.55,2440.4,2440.0,1.0254]
[1750940560755,7.577,2440.5,2440.0,5.1236797]
[1750940560975,0.801,2440.5,2440.0,1.0254]
[1750940561280,0.801,2440.5,2440.0,5.12367266]
[1750940562145,0.55,2440.4,2440.0,5.12367266]
[1750940562683,0.7853,2440.7,2440.0,1.0254]
[1750940562891,0.7853,2440.7,2440.0,5.1237046]
[1750940563107,0.7853,2440.7,2440.2,4.0980211]
[1750940563315,0.7853,2440.7,2440.3,4.09785163]
[1750940563467,1.91883,2440.7,2440.2,4.09794536]
[1750940563867,1.91883,2440.7,2440.3,4.09785682]
[1750940565002,1.91883,2440.7,2440.3,4.09783242]
[1750940565388,10.55,2440.9,2440.6,4.0973531]
[1750940565389,0.7751,2440.9,2440.6,4.0973531]
[1750940565566,0.55,2441.0,2440.6,4.09731329]
[1750940566089,0.7751,2441.1,2440.7,4.09710625]
[1750940566404,0.7751,2441.1,2440.8,4.09700784]
[1750940566562,0.55,2441.0,2440.9,4.09684952]
[1750940566764,8.534,2441.4,2440.8,4.09685029]
[1750940566963,10.0,2441.2,2440.8,4.09685029]
[1750940567795,10.0,2441.2,2440.7,4.09702868]
[1750940567995,2.78126908,2441.3,2440.5,0.8135]
[1750940568196,20.27651682,2441.5,2441.0,4.09658957]
[1750940568397,0.55,2441.4,2441.0,4.09658957]
[1750940568712,10.55,2441.4,2440.9,4.91386251]
[1750940569068,9.3038,2441.5,2440.9,4.91386251]
[1750940569069,10.7718,2441.5,2440.9,4.91388546]
[1750940569269,10.7718,2441.5,2440.9,0.8171]
[1750940569270,0.7718,2441.5,2440.9,0.8171]
[1750940569503,0.7718,2441.5,2440.7,4.92441711]
[1750940569504,0.55,2441.3,2440.7,4.92441711]
[1750940570071,0.2048,2441.1,2440.7,1.0321]
[1750940570267,0.2048,2441.0,2440.6,4.30204027]
[1750940571021,0.2048,2441.0,2440.6,0.2048]
[1750940571385,0.2048,2440.9,2440.4,4.30239433]
[1750940571907,0.2048,2440.9,2440.3,2.5607]
[1750940571908,0.7712,2440.8,2440.3,14.8764938]
[1750940572215,0.2048,2440.6,2440.3,14.8764938]
[1750940572375,0.2048,2440.6,2440.4,4.09766417]
[1750940574590,0.2048,2440.6,2440.3,10.7787]
[1750940574591,0.2048,2440.6,2440.3,14.87646264]
[1750940575084,0.2048,2440.6,2440.4,4.09767778]
[1750940575284,0.2048,2440.6,2440.3,14.87643975]
[1750940575480,0.2048,2440.6,2440.3,14.09773975]
[1750940575918,0.2048,2440.6,2440.4,4.09767148]
[1750940576222,0.2048,2440.6,2440.3,14.09779557]
[1750940577214,0.55,2440.7,2440.1,4.90666613]
[1750940577380,0.2048,2440.4,2440.1,4.90666613]
[1750940577708,0.2048,2440.4,2440.1,4.90673459]
[1750940577908,0.2048,2440.4,2440.3,4.09785682]
[1750940578410,0.2048,2440.4,2440.2,4.09794256]
[1750940579513,0.2048,2440.4,2440.0,4.50308495]
[1750940579893,0.2048,2440.4,2440.1,4.09817231]
[1750940582083,0.2048,2440.4,2440.2,4.09802465]
[1750940583512,0.2048,2440.4,2440.1,4.09810463]
[1750940583715,0.2048,2440.4,2440.2,4.09800004]
[1750940583914,0.2048,2440.4,2440.1,4.0981072]
[1750940584115,0.2048,2440.4,2440.2,4.09797236]
[1750940585624,0.7712,2440.8,2440.5,4.09751798]
[1750940585802,0.2048,2440.8,2440.3,8.20842794]
[1750940586008,0.2048,2440.8,2440.5,4.09751217]
[1750940586226,0.2048,2440.8,2440.6,4.09734534]
[1750940586433,0.2048,2440.3,2440.1,4.09819269]
[1750940587330,0.2048,2440.3,2440.0,4.29827218]
[1750940588146,0.9694,2440.3,2440.0,4.29827218]
[1750940588723,0.9694,2440.3,2440.0,4.29826316]
[1750940589047,0.9694,2440.3,2440.0,0.2]
[1750940589922,0.7518,2440.2,2440.0,0.2]
[1750940590236,0.55,2440.1,2440.0,0.2]
[1750940591118,1.3018,2440.1,2440.0,0.2]
[1750940591323,40.55,2439.7,2438.8,0.2048]
[1750940591534,40.55,2439.7,2436.4,2.04387647]
[1750940591535,4.307,2438.8,2436.8,0.2048]
[1750940591830,8.53632794,2437.5,2436.1,0.32545942]
[1750940592160,4.307,2437.6,2436.6,7.23452794]
[1750940592161,0.97421592,2437.4,2436.6,7.23452794]
[1750940592364,0.96896266,2437.7,2436.9,7.18452794]
[1750940592523,1.51896266,2438.0,2436.7,0.7676]
[1750940592719,1.19603893,2437.9,2436.7,4.87145341]
[1750940592951,0.55,2437.7,2436.7,0.7676]
[1750940593170,10.55,2437.5,2436.3,0.7676]
[1750940593478,0.7518,2437.3,2436.1,0.32545942]
[1750940593628,0.7672,2436.1,2435.6,0.2204156]
[1750940593969,0.55,2436.0,2435.6,0.2204156]
[1750940594150,10.7672,2436.1,2435.6,0.2204156]
[1750940594356,1.62672,2436.0,2435.6,0.2204156]
[1750940594522,0.55,2436.0,2435.6,0.2204156]
[1750940595377,0.8263,2435.5,2434.2,0.20057243]
[1750940595576,0.8263,2435.5,2434.0,0.8202]
[1750940595729,0.55,2435.4,2434.0,11.14491972]
[1750940595930,0.55,2435.4,2434.1,4.10829464]
[1750940596130,0.8263,2435.5,2434.3,4.10783212]
[1750940596376,0.55,2435.4,2434.9,4.10688513]
[1750940596692,2.43210807,2436.6,2435.7,4.10551046]
[1750940596839,0.8067,2436.8,2435.0,38.96460772]
[1750940596840,0.95728209,2436.5,2435.3,10.0]
[1750940597157,0.95728209,2436.6,2435.8,10.0]
[1750940597363,0.95728209,2436.5,2436.1,4.1049218]
[1750940597563,0.95541416,2436.9,2436.1,4.10491663]
[1750940597730,0.95541416,2436.8,2436.0,10.0]
[1750940597945,2.43210807,2436.5,2436.0,10.0]
[1750940598146,3.38752223,2436.4,2435.9,1.08099]
[1750940598345,0.95541416,2436.3,2436.1,4.1048331]
[1750940598551,0.95541416,2436.2,2436.1,4.1049218]
[1750940598778,0.95541416,2436.2,2435.9,4.10511463]
[1750940598974,0.95541416,2436.1,2436.0,4.10509031]
[1750940599275,0.95541416,2436.1,2434.9,15.12976972]
[1750940599462,0.95541416,2436.0,2435.7,4.10542766]
[1750940599663,0.95541416,2435.9,2435.8,4.10542737]
[1750940600073,0.95541416,2435.9,2435.2,7.4800234]
[1750940600272,2.43210807,2436.4,2435.7,4.10559592]
[1750940600273,0.95541416,2435.8,2435.7,4.10559592]
[1750940600442,0.95541416,2436.3,2435.3,14.10625326]
[1750940600642,0.95541416,2436.2,2435.8,4.10527679]
[1750940600866,0.95541416,2436.5,2435.5,20.32471972]
[1750940601067,0.95541416,2436.8,2435.7,10.0]
[1750940601266,0.95541416,2436.7,2435.7,16.68656926]
[1750940601455,4.86780724,2437.0,2435.7,16.68656926]
[1750940601456,0.55,2436.5,2435.7,2.581]
[1750940601656,0.95541416,2436.9,2435.7,7.35518431]
[1750940601855,0.2048,2436.5,2436.1,0.2048]
[1750940602152,0.2048,2436.3,2436.0,4.1050641]
[1750940602366,0.2048,2436.3,2436.1,4.10489973]
[1750940602678,0.2048,2436.3,2436.2,4.1047533]
[1750940602972,0.7644,2437.0,2436.5,4.10424789]
[1750940602973,0.2048,2436.6,2436.5,4.10424789]
[1750940603179,0.2048,2436.7,2436.3,0.2048]
[1750940603474,2.98210807,2436.5,2435.1,10.7519]
[1750940603675,2.98210807,2436.5,2435.7,4.10551231]
[1750940603676,0.94961371,2436.4,2435.7,4.10551231]
[1750940603876,0.94961371,2436.3,2435.9,4.10523835]
[1750940604077,0.94961371,2436.2,2436.1,4.10480596]
[1750940605269,0.94961371,2436.2,2435.9,2.581]
[1750940605454,0.94961371,2436.1,2436.0,4.10509031]
[1750940606164,0.94961371,2436.1,2435.1,14.1065446]
[1750940606368,0.7775,2436.2,2435.0,4.10673915]
[1750940606369,0.94961371,2436.0,2435.7,4.10553542]
[1750940606564,0.94961371,2435.9,2435.8,4.10542737]
[1750940607678,0.94961371,2435.9,2434.4,0.7839]
[1750940607877,0.94961371,2435.8,2435.5,4.10584229]
[1750940608078,0.94961371,2435.8,2435.0,10.0]
[1750940608079,0.94961371,2435.7,2435.6,4.10576449]
[1750940609782,0.94961371,2435.7,2435.0,10.0]
[1750940609783,0.55,2435.6,2434.4,5.16606]
[1750940610003,0.55,2435.4,2434.4,2.578806]
[1750940610152,2.37613222,2435.1,2434.7,4.10719284]
[1750940610357,0.94961371,2435.0,2434.6,4.10733829]
[1750940610572,3.32574593,2434.9,2434.2,0.7885]
[1750940610783,3.32574593,2434.8,2434.6,4.10732502]
[1750940611088,0.94961371,2434.7,2433.9,4.10863223]
[1750940611391,3.32574593,2434.6,2434.5,4.10761963]
[1750940611604,0.94961371,2434.6,2434.5,4.87491963]
[1750940611888,0.94961371,2434.6,2434.5,15.77318863]
[1750940612092,0.94961371,2434.6,2434.5,18.35518863]
[1750940612297,0.94961371,2434.6,2434.5,33.26933135]
[1750940612498,0.94961371,2434.6,2434.5,28.67990835]
[1750940612662,0.94961371,2434.6,2434.5,30.83259835]
[1750940612864,0.94961371,2434.6,2434.5,44.64482935]
[1750940613363,3.2294462,2435.6,2435.5,4.10593307]
[1750940613566,0.2048,2435.9,2435.3,4.10627027]
[1750940613567,4.24160775,2435.9,2435.3,4.10627027]
[1750940613783,3.17324186,2435.6,2435.5,4.10593307]
[1750940613982,3.17324186,2435.6,2435.5,4.31073307]
[1750940614169,4.03680775,2435.9,2435.5,4.31073307]
[1750940614373,4.03680775,2435.9,2435.1,10.0]
[1750940614374,3.17654778,2435.7,2435.1,10.0]
[1750940614603,3.17654778,2435.6,2435.2,4.10638192]
[1750940614767,3.17654778,2435.6,2435.4,4.1060112]
[1750940615074,3.17654778,2435.6,2435.5,4.10593307]
[1750940615401,0.40368078,2435.8,2434.9,14.10680148]
[1750940615595,3.18026017,2435.5,2435.4,4.10595031]
[1750940616294,4.03680775,2435.7,2435.5,4.10584846]
[1750940616596,4.03680775,2435.8,2435.2,4.10631868]
[1750940616777,3.18545094,2435.4,2435.2,4.10631868]
[1750940616977,3.18545094,2435.4,2435.3,4.10614941]
[1750940617198,3.18545094,2435.5,2435.3,4.10614941]
[1750940617418,3.19146432,2435.4,2435.3,4.10614941]
[1750940618268,4.03680775,2435.5,2435.4,4.10610166]
[1750940618512,4.03680775,2435.6,2435.5,4.10593307]
[1750940619206,5.65153086,2435.9,2435.2,4.10643889]
[1750940619393,5.65153086,2435.7,2435.6,4.10567522]
[1750940619583,5.65153086,2435.7,2435.4,3.28728349]
[1750940619784,0.56515309,2435.8,2435.6,4.10567522]
[1750940619998,0.56515309,2435.8,2435.0,4.10677618]
[1750940620183,5.65153086,2435.7,2435.5,4.10582129]
[1750940620366,5.65153086,2435.7,2435.1,4.10660753]
[1750940620367,0.782,2435.5,2435.1,4.10652358]
[1750940620568,4.01970219,2435.3,2435.2,4.10634168]
[1750940621266,5.65153086,2435.3,2434.8,10.0]
[1750940621464,5.65153086,2435.3,2435.2,4.10643889]
[1750940621869,5.65153086,2435.6,2435.5,4.10593307]
[1750940622070,5.65153086,2435.7,2435.5,4.10593307]
[1750940622304,5.65153086,2435.7,2435.5,4.10586713]
[1750940622473,0.56515309,2435.7,2435.3,4.10612482]
[1750940623027,6.21668395,2435.7,2435.3,4.10612482]
[1750940623197,6.21668395,2435.7,2435.2,4.10643889]
[1750940623397,5.65153086,2435.6,2435.3,4.10627027]
[1750940623637,5.65153086,2435.6,2435.2,4.10643761]
[1750940623794,6.21668395,2435.7,2435.4,4.10609091]
[1750940624127,5.65153086,2435.7,2435.4,4.10609091]
[1750940624510,0.2048,2435.7,2435.4,4.10607362]
[1750940624719,0.2048,2435.7,2435.6,4.10576449]
[1750940625198,1.17586691,2435.7,2435.6,4.10576449]
[1750940626790,1.17586691,2435.7,2435.4,4.10602924]
[1750940626791,1.17586691,2435.7,2435.5,4.10588606]
[1750940627026,0.97106691,2435.6,2435.5,4.10588606]
[1750940627208,0.97106691,2435.6,2435.3,4.10618662]
[1750940627402,0.55,2435.9,2435.6,4.10575615]
[1750940627602,0.2048,2435.7,2435.6,4.10575615]
[1750940627813,1.17606455,2435.7,2435.3,4.31098555]
[1750940628008,3.23766336,2435.4,2435.3,4.10618555]
[1750940628323,4.20892791,2435.4,2435.3,4.10618555]
[1750940629645,0.55,2435.1,2434.5,4.1074965]
[1750940629922,3.23766336,2434.9,2434.5,4.1075331]
[1750940630237,0.97126455,2434.8,2434.5,4.10752714]
[1750940630528,0.97126455,2434.7,2434.6,4.10729708]
[1750940631633,0.97126455,2434.7,2434.6,4.10745091]
[1750940632942,0.97126455,2434.7,2434.6,4.92895584]
[1750940634202,0.8217,2435.5,2434.7,0.8266]
[1750940634423,0.97223373,2435.4,2434.9,4.1069231]
[1750940634702,0.97223373,2435.3,2435.2,4.10634813]
[1750940635305,0.97223373,2435.3,2435.2,4.10643889]
[1750940635807,0.97223373,2435.3,2434.7,0.8266]
[1750940636009,0.97223373,2435.2,2435.1,4.1065871]
[1750940636339,0.97223373,2435.2,2435.1,4.10660753]
[1750940638443,0.97223373,2435.2,2435.1,4.91080753]
[1750940639316,0.97223373,2435.2,2435.1,7.39980753]
[1750940639839,0.97223373,2435.2,2435.1,7.60460753]
[1750940640136,0.97223373,2435.2,2435.1,8.77574367]
[1750940641141,0.97223373,2435.2,2435.1,16.67774367]
[1750940641326,0.97223373,2435.2,2435.1,43.20692037]
[1750940641504,3.23766336,2435.8,2435.7,4.10559592]
[1750940641709,3.23766336,2435.9,2435.8,4.10542737]
[1750940641938,0.2048,2436.3,2435.7,0.2048]
[1750940641939,3.23766336,2436.0,2435.7,0.2048]
[1750940642162,0.32376634,2435.9,2435.7,0.2048]
[1750940642310,0.32376634,2435.9,2435.3,0.7566]
[1750940642510,0.32376634,2435.9,2435.5,4.31073015]
[1750940642738,0.2048,2436.0,2435.6,4.10572868]
[1750940642932,0.2048,2436.0,2435.5,4.3106445]
[1750940643253,0.2048,2436.0,2435.5,4.31071324]
[1750940643746,0.2048,2436.0,2435.5,4.31070764]
[1750940643946,0.2048,2436.0,2435.5,0.2048]
[1750940644132,0.7524,2435.9,2435.5,0.2048]
[1750940644337,1.3024,2436.2,2435.1,10.379]
[1750940644642,1.3024,2436.2,2435.3,4.31098983]
[1750940644643,0.2048,2435.7,2435.3,4.31098983]
[1750940644850,0.2048,2435.7,2435.3,4.31100104]
[1750940645047,0.2048,2435.7,2435.5,4.10584768]
[1750940645543,0.7524,2436.2,2435.1,10.379]
[1750940645847,0.2048,2436.0,2435.6,4.31048847]
[1750940646142,0.7524,2436.2,2436.1,4.1049218]
[1750940646343,0.2048,2436.4,2435.9,4.31004654]
[1750940646642,0.2048,2436.4,2436.3,4.10458482]
[1750940646843,0.2048,2436.8,2436.7,4.10391102]
[1750940647008,0.2048,2437.0,2436.9,4.10357421]
[1750940647214,8.04224475,2437.7,2436.7,10.2048]
[1750940647411,0.80422448,2437.6,2437.0,4.10340582]
[1750940647720,0.80422448,2437.6,2437.3,0.2048]
[1750940647721,0.2048,2437.6,2437.3,0.2048]
[1750940647926,0.2048,2437.6,2437.2,4.10295283]
[1750940648138,0.2048,2437.6,2437.4,4.1026468]
[1750940648319,0.2048,2437.6,2437.0,4.10340582]
[1750940648320,0.2048,2437.6,2437.2,0.2048]
[1750940648520,0.9619,2437.7,2437.3,4.10285588]
[1750940648732,0.9619,2437.7,2437.2,0.2048]
[1750940649149,0.7571,2437.7,2437.0,4.10333046]
[1750940649451,0.2048,2437.5,2437.1,4.30794271]
[1750940649650,0.2048,2437.5,2437.2,4.10302321]
[1750940650048,0.2048,2437.5,2437.1,0.2048]
[1750940651058,0.7571,2437.7,2437.1,4.10319063]
[1750940651343,0.7571,2437.7,2437.1,4.10308518]
[1750940651563,0.7571,2437.7,2437.0,4.10336252]
[1750940652121,0.7571,2437.7,2436.7,11.94979913]
[1750940652318,0.55,2437.6,2436.7,7.846]
[1750940652535,0.55,2437.6,2436.0,4.10507512]
[1750940652536,0.55,2437.6,2436.1,0.7591]
[1750940652743,0.55,2437.2,2436.5,4.10424255]
[1750940653164,11.0695,2437.3,2436.6,4.10394869]
[1750940653580,0.7615,2437.3,2436.6,4.10394869]
[1750940653781,8.5755,2437.3,2436.1,0.7591]
[1750940654106,0.55,2437.2,2436.1,0.7591]
[1750940654402,0.91255,2437.1,2436.6,4.10403125]
[1750940654765,0.91255,2437.1,2436.5,4.10418038]
[1750940654956,0.91255,2437.1,2436.4,4.10433371]
[1750940655163,0.91255,2437.1,2436.1,6.59919597]
[1750940655497,0.91255,2437.1,2436.6,4.1040751]
[1750940655684,0.926055,2437.0,2436.5,4.10418645]
[1750940656084,0.926055,2437.0,2436.5,4.1041786]
[1750940656264,0.926055,2437.0,2436.4,4.10435082]
[1750940656465,0.926055,2437.0,2436.5,4.10424789]
[1750940656776,0.926055,2437.0,2436.7,4.10382366]
[1750940656981,0.926055,2437.0,2436.1,6.5991458]
[1750940657291,0.926055,2437.0,2436.7,4.1039038]
[1750940657598,7.778,2437.2,2436.7,4.1039038]
[1750940657783,0.7615,2437.3,2436.6,4.10401254]
[1750940657964,7.778,2437.2,2436.6,4.10401254]
[1750940658164,7.778,2437.2,2436.7,4.10390409]
[1750940658365,7.778,2437.2,2436.1,0.7591]
[1750940658366,1.09385,2437.1,2436.4,4.1042794]
[1750940658701,1.09385,2437.1,2436.6,4.10407574]
[1750940658999,8.86285,2437.1,2436.6,4.10407574]
[1750940660499,8.86285,2437.1,2436.7,4.103874]
[1750940660704,8.86285,2437.1,2436.6,4.1040102]
[1750940660902,0.886285,2437.0,2436.3,4.10456975]
[1750940661090,1.091085,2437.0,2436.6,4.10398777]
[1750940661498,0.2048,2437.0,2436.6,4.10398777]
[1750940661682,0.7677,2436.9,2436.2,4.10464149]
[1750940661885,0.2048,2436.5,2436.2,4.10464149]
[1750940662697,0.2048,2436.5,2436.1,4.30963585]
[1750940663004,4.87136107,2436.9,2435.9,4.10525227]
[1750940663212,0.2048,2436.2,2435.8,4.31013524]
[1750940663503,0.9644,2436.2,2435.8,4.31013861]
[1750940664010,0.7596,2436.2,2435.8,4.10533861]
[1750940664317,0.2048,2436.1,2435.8,4.10533861]
[1750940664675,0.7596,2436.2,2436.1,4.1049218]
[1750940665070,0.7596,2436.2,2436.0,4.10498302]
[1750940665573,0.7596,2436.2,2435.4,0.824]
[1750940665574,0.55,2436.1,2435.2,1.26253811]
[1750940665773,0.55,2436.1,2435.5,4.1058113]
[1750940665974,0.55,2436.1,2435.4,4.10602117]
[1750940667474,0.55,2436.5,2435.8,4.10532054]
[1750940667718,0.55,2436.5,2435.7,4.10550348]
[1750940668085,0.55,2436.5,2435.8,4.1053943]
[1750940668285,7.701,2436.4,2436.0,4.10497262]
[1750940668524,0.8251,2436.3,2436.0,4.10497262]
[1750940668704,0.8251,2436.3,2436.1,4.10491251]
[1750940668884,0.7514,2436.6,2435.9,4.10515926]
[1750940669216,0.7514,2436.6,2436.0,4.10500885]
[1750940669421,8.4464,2436.6,2436.0,4.10500885]
[1750940669719,0.7514,2436.6,2435.5,4.92631028]
[1750940669896,0.7514,2436.6,2436.1,4.10483588]
[1750940670099,0.84454,2436.5,2436.1,4.10483588]
[1750940671018,0.84454,2436.5,2436.2,4.10475231]
[1750940672100,0.7514,2436.6,2436.2,4.10475231]
[1750940672889,0.7514,2436.6,2436.1,4.10483009]
[1750940673225,0.7514,2436.6,2436.0,4.10499769]
[1750940673723,0.7514,2436.6,2436.1,4.10490718]
[1750940674095,0.7514,2436.6,2436.1,4.10484231]
[1750940674605,1.59214,2436.6,2436.1,4.10484231]
[1750940674811,1.59214,2436.6,2436.0,4.10500597]
[1750940675412,1.59214,2436.6,2435.9,4.10521261]
[1750940675588,0.2048,2436.3,2435.9,4.10521261]
[1750940677797,0.2048,2436.3,2435.8,4.31014819]
[1750940677998,8.3741,2436.2,2435.6,4.1056648]
[1750940678198,0.2048,2436.0,2435.6,4.1056648]
[1750940678398,8.3741,2436.2,2435.5,4.10584804]
[1750940678597,0.2048,2435.8,2435.5,4.10584804]
[1750940679206,0.2048,2435.8,2435.4,4.10602524]
[1750940679728,0.2048,2435.8,2435.3,6.70998473]
[1750940679897,0.817,2435.7,2435.3,6.70998473]
[1750940680099,0.817,2435.7,2435.3,4.31098473]
[1750940680300,0.817,2435.7,2435.3,4.31098824]
[1750940680729,0.817,2435.7,2435.4,4.10598144]
[1750940681107,0.817,2435.7,2435.3,0.2048]
[1750940681304,0.817,2435.7,2435.2,1.26253811]
[1750940681504,0.2048,2435.5,2435.2,1.26253811]
[1750940682417,0.2048,2435.5,2435.4,4.10610166]
[1750940682622,0.817,2435.7,2435.5,4.10583331]
[1750940682825,0.817,2435.7,2435.3,0.2048]
[1750940682826,0.7967,2436.0,2435.3,4.89557027]
[1750940683136,0.7967,2435.9,2435.2,4.10629483]
[1750940683502,0.55,2435.8,2435.1,4.10660339]
[1750940683729,0.55,2435.8,2434.8,9.845]
[1750940683730,0.55,2435.6,2434.8,4.10698971]
[1750940683930,0.55,2435.6,2434.8,4.10711352]
[1750940684148,0.55,2435.4,2434.8,4.10711352]
[1750940684317,0.89165,2435.3,2434.7,4.10724293]
[1750940684838,0.89165,2435.3,2434.8,4.10707831]
[1750940685000,0.89165,2435.3,2434.5,2.313]
[1750940685627,8.137,2435.4,2434.7,4.10720212]
[1750940685806,8.137,2435.4,2434.5,4.10750751]
[1750940685807,0.8097,2435.3,2434.8,4.10709982]
[1750940686008,0.8097,2435.3,2434.7,4.10721523]
[1750940686721,10.0,2435.8,2434.7,0.8264]
[1750940686930,0.8229,2436.3,2434.8,4.10711352]
[1750940686931,0.7775,2435.7,2434.8,4.10711352]
[1750940687113,0.55,2435.6,2434.8,4.10711352]
[1750940687314,0.55,2435.4,2434.7,4.10723032]
[1750940688106,0.55,2435.2,2434.3,0.66061935]
[1750940688403,0.55,2434.9,2434.2,4.10804587]
[1750940688622,0.7557,2434.8,2434.0,4.10842128]
[1750940688945,0.7557,2434.8,2434.5,4.10747352]
[1750940689249,0.7557,2434.8,2433.8,0.8126]
[1750940689530,0.55,2434.7,2434.0,4.10837902]
[1750940689732,0.55,2434.7,2434.0,4.10843598]
[1750940689932,0.55,2434.7,2434.1,4.10820183]
[1750940690138,0.55,2434.7,2434.1,4.10820672]
[1750940690335,0.55,2434.5,2433.4,0.7506]
[1750940690540,14.65709194,2434.9,2433.4,0.7506]
[1750940690541,0.7802,2434.4,2433.4,2.24346609]
[1750940690838,10.0,2434.6,2434.2,4.10801144]
[1750940691039,10.0,2434.6,2434.3,4.10792923]
[1750940691240,0.7802,2434.7,2434.2,4.10811875]
[1750940691534,0.7802,2434.7,2434.6,4.10745091]
[1750940692242,1.70547,2435.1,2434.3,4.10783086]
[1750940692455,1.70547,2435.1,2434.6,4.10730479]
[1750940692902,0.7903,2435.0,2434.4,4.10767652]
[1750940693106,0.2048,2434.7,2434.4,4.10767652]
[1750940693411,0.2048,2434.7,2434.3,4.10788472]
[1750940693712,0.88927,2435.1,2434.1,4.10821234]
[1750940693713,0.8295,2434.8,2434.1,4.10821234]
[1750940693913,0.2048,2434.5,2434.0,0.2048]
[1750940694143,0.2048,2434.3,2433.9,4.10852742]
[1750940694364,0.55,2434.4,2433.8,4.10870696]
[1750940694646,0.2048,2434.1,2433.7,4.10889092]
[1750940694814,0.8295,2434.0,2433.4,1.49286609]
[1750940695013,0.8295,2434.0,2433.9,4.10863223]
[1750940695415,0.2048,2434.1,2434.0,4.10846343]
[1750940695603,0.2048,2434.3,2434.1,4.10821003]
[1750940696204,7.7678,2434.3,2434.2,4.10812587]
[1750940696421,8.85799,2434.3,2434.0,4.10843526]
[1750940696711,8.65319,2434.3,2433.8,4.10871623]
[1750940697029,8.65319,2434.3,2433.9,4.10850756]
[1750940697030,0.2048,2434.1,2433.9,4.10850756]
[1750940697204,0.2048,2434.1,2433.8,4.10879091]
[1750940697404,0.2048,2434.1,2433.9,4.10852364]
[1750940697642,7.7628,2434.1,2434.0,4.10846343]
[1750940698476,0.2048,2434.1,2434.0,4.10846343]
[1750940698650,7.7578,2434.1,2434.0,4.10846343]
[1750940699691,9.32868,2434.1,2433.7,4.10889321]
[1750940699847,0.2048,2434.0,2433.7,4.10889321]